Cogmind - Beta 13 @@@ ROGUE MODE // 2024.05.05 @ 12:10:54 Player: Wyvric Result: Destroyed by S-10 Pest with Light Assault Rifle Performance ------------- Evolutions (0) 0 Regions Visited (2) 400 Robots Destroyed (13) 65 Value Destroyed (278) 278 Prototype IDs (0) 0 Alien Tech Used (0) 0 Bonus (0) 0 TOTAL SCORE: 743 Bonus ------- None Cogmind --------- Core Integrity 0/250 Matter 250/300 Energy 100/100 System Corruption 0% Temperature Cool (0) Movement Walking (120) Location -10/Mines Parts ------- > --- POWER (1) -------- (None) > --- PROPULSION (2) --- Aluminum Leg Aluminum Leg > --- UTILITY (2) ------ Small Storage Unit Propulsion Shielding > --- WEAPON (2) ------- Light Assault Rifle Light Assault Rifle > --- INVENTORY (8) ---- Wheel Wheel High-capacity Storage Unit Mining Laser Peak State ------------ > --- POWER ------------ Ion Engine > --- PROPULSION ------- Wheel Wheel > --- UTILITY ---------- Small Storage Unit Propulsion Shielding > --- WEAPON ----------- Light Assault Rifle Mining Laser > --- INVENTORY -------- Aluminum Leg Aluminum Leg High-capacity Storage Unit [Rating: 7] Favorites ----------- Power Ion Engine Engine Ion Engine Propulsion Light Treads Treads Light Treads Leg Aluminum Leg Wheel Wheel Utility Small Storage Unit Storage Small Storage Unit Protection Propulsion Shielding Weapon EM Pulse Gun Energy Gun EM Pulse Gun Ballistic Gun Light Assault Rifle Special Weapon Mining Laser Build | -11 -10 -10 ------- Run | Yrd Mat Min Slots Evolved . | . . . Power . | . . . Propulsion . | . . . Utility . | . . . Weapon . | . . . Parts Attached 23 | 7 8 8 Power 3 | 1 2 . Engine 3 | 1 2 . Core . | . . . Reactor . | . . . Propulsion 8 | 2 2 4 Treads 2 | 2 . . Leg 4 | . 2 2 Wheel 2 | . . 2 Hover . | . . . Flight . | . . . Utility 2 | 1 . 1 Device . | . . . Storage 1 | 1 . . Processor . | . . . Hackware . | . . . Protection 1 | . . 1 Artifact . | . . . Weapon 10 | 3 4 3 Energy Gun 7 | 3 4 . Energy Cannon . | . . . Ballistic Gun 2 | . . 2 Ballistic Cannon . | . . . Launcher . | . . . Special Weapon 1 | . . 1 Impact Weapon . | . . . Slashing Weapon . | . . . Piercing Weapon . | . . . Special Melee Weapon . | . . . Unidentified Prototypes . | . . . Parts Lost 8 | . 7 1 Power 2 | . 1 1 Propulsion 2 | . 2 . Utility . | . . . Weapon 4 | . 4 . Highest Loss Streak 7 | . 7 1 To Critical Strikes . | . . . Average Slot Usage (%) 80 | . 81 78 Engine 13 | . 13 14 Treads 18 | . 23 . Leg 4 | . 4 7 Wheel 3 | . . 21 Storage 14 | . 14 14 Energy Gun 20 | . 24 . Ballistic Gun 1 | . . 5 Special Weapon 2 | . . 11 Naked Turns . | . . . Heaviest Build 14 | 11 14 13 Greatest Support 40 | 40 40 20 Greatest Overweight (x) . | . . . Average Overweight (x) . | . . . Largest Inventory Capacity 8 | 8 8 8 Average Capacity 7 | 6 8 8 Most Carried 8 | 7 8 4 Average Carried 5 | 4 6 3 Final Capacity 8 | 8 8 8 Final Carried 6 | 6 4 4 Class Distribution -------------------- 100% | Mutant Dominant Class ---------------- Mutant | -10/Materials Mutant | -10/Mines Resources | -11 -10 -10 ----------- Run | Yrd Mat Min Matter Collected 371 | 220 117 34 Remotely . | . . . Salvage Created 331 | . 313 18 Parts 26 | . 23 3 Haulers Intercepted . | . . . Recyclers Shooed 1 | . 1 . Parts Field Recycled . | . . . Retrieved Matter . | . . . Parts Self-Destructed . | . . . Prevented . | . . . Kills | -11 -10 -10 ------- Run | Yrd Mat Min Combat Hostiles Destroyed 12 | . 9 3 Guns 8 | . 7 1 Cannons 2 | . . 2 AOE 2 | . 2 . Classes Destroyed 3 | . 3 . Worker 1 | . 1 . Swarmer 6 | . 3 3 Grunt 6 | . 6 . Best Kill Streak 4 | . 4 2 Combat Bots Only 3 | . 3 2 Max Kills in Single Turn 2 | . 2 1 Gunslinging . | . . . Exploded 2 | . 2 . Melee . | . . . Uniques/NPCs Destroyed . | . . . Combat | -11 -10 -10 -------- Run | Yrd Mat Min Hostile Shots Fired 120 | . 79 41 Missed 29 | . 18 11 Damage Taken 1032 | . 789 243 Core 250 | . 137 113 Absorbed by Shields . | . . . Redirected to Shielding 11 | . . 11 Core Remaining (%) 100 | 100 . . Volleys Fired 32 | . 22 10 Largest 2 | . 2 2 Hottest 100 | . 80 100 Shots Fired 58 | . 41 17 Gun 55 | . 41 14 Cannon . | . . . Launcher . | . . . Special 3 | . . 3 Kinetic 14 | . . 14 Thermal 3 | . . 3 Explosive . | . . . Electromagnetic 41 | . 41 . Robot Hit Streak 8 | . 8 3 Robot Miss Streak 4 | . 4 2 Penetration Max . | . . . Secondary Targets . | . . . Shots Hit Robots 39 | . 29 10 Core Hits 22 | . 17 5 Critical Kills . | . . . Critical Parts Destroyed . | . . . Critical Strikes . | . . . Melee Attacks . | . . . Impact . | . . . Slashing . | . . . Piercing . | . . . Sneak Attacks . | . . . Combat Hostiles . | . . . Follow-up Attacks . | . . . Damage Inflicted 625 | . 512 113 Guns 440 | . 379 61 Cannons . | . . . Explosions 117 | . 117 . Melee . | . . . Ramming 20 | . 16 4 Kinetic 61 | . . 61 Thermal 165 | . 117 48 Explosive . | . . . Electromagnetic 379 | . 379 . Impact . | . . . Slashing . | . . . Piercing . | . . . Highest Corruption . | . . . Average Corruption . | . . . Corruption Purged . | . . . Corruption Blocked . | . . . Overload Shots . | . . . Overflow Damage . | . . . Projectiles . | . . . Explosions . | . . . Melee . | . . . Knockbacks . | . . . Impact . | . . . Kinetic . | . . . Secondary . | . . . Self-Inflicted Damage 41 | . 39 2 Shots 1 | . 1 . Rammed 7 | . 6 1 Targets Rammed 12 | . 11 1 Kicked 5 | . 5 . Crushed . | . . . Highest Temperature 129 | . 129 60 Average Temperature 47 | . 49 32 Received Heat Transfer 378 | . 378 . Siege Activations . | . . . Robots Corrupted . | . . . Combat Hostiles . | . . . Parts Fried 2 | . 2 . Impact Corruptions . | . . . Robots Melted . | . . . Combat Hostiles . | . . . Parts Melted 1 | . . 1 Heat Transferred 200 | . 100 100 Parts Sabotaged . | . . . Parts Stolen . | . . . Parts Stripped . | . . . Power Chain Reactions 1 | . 1 . Alert | -11 -10 -10 ------- Run | Yrd Mat Min Peak Influence 284 | . 284 136 Initial 30 | . . 30 Average 75 | . 89 69 Maximum Alert Level 1 | . 1 . Low Security (%) 94 | 100 92 100 Level 1 5 | . 7 . Level 2 . | . . . Level 3 . | . . . Level 4 . | . . . Level 5 . | . . . High Security . | . . . Max Security . | . . . Squads Dispatched 2 | . 2 . Investigation 2 | . 2 . Extermination . | . . . Reinforcement . | . . . Assault . | . . . Garrison . | . . . Intercept . | . . . Searches Triggered . | . . . Construction Impeded . | . . . Haulers Reinforced . | . . . Active Scanning Responses . | . . . Cargo Convoy Interrupts . | . . . Stealth | -11 -10 -10 --------- Run | Yrd Mat Min Distress Signals 1 | . 1 . Communications Jammed . | . . . Distress Signals . | . . . Times Spotted 22 | . 14 8 Peak Tracking Total 6 | . 6 4 Tactical Retreats 3 | . 1 2 Traps | -11 -10 -10 ------- Run | Yrd Mat Min Traps Triggered 1 | . 1 . Indirectly . | . . . Trap Hack Attempts . | . . . Triggered . | . . . Disarmed . | . . . Reprogrammed . | . . . Reused . | . . . Traps Extracted . | . . . Installed . | . . . Triggered . | . . . Machines | -11 -10 -10 ---------- Run | Yrd Mat Min Machines Disabled . | . . . Max in Single Turn . | . . . Machines Repaired . | . . . Machines Dismantled . | . . . Machines Sabotaged . | . . . Overloaded Fab Kills . | . . . Hacking | -11 -10 -10 --------- Run | Yrd Mat Min Machines Accessed 4 | . 4 . Terminals 2 | . 2 . Fabricators . | . . . Repair Stations . | . . . Recycling Units 2 | . 2 . Scanalyzers . | . . . Garrison Access . | . . . Total Hacks 6 | . 6 . Successful 4 | . 4 . Failed 2 | . 2 . Catastrophic . | . . . Database Lockouts . | . . . Manual 5 | . 5 . Terminals 4 | . 4 . Fabricators . | . . . Repair Stations . | . . . Recycling Units 2 | . 2 . Scanalyzers . | . . . Garrison Access . | . . . Terminal Hacks 1 | . 1 . Part Schematic 1 | . 1 . Fabricator Hacks . | . . . Repair Station Hacks . | . . . Recycling Unit Hacks . | . . . Scanalyzer . | . . . Garrison Access Hacks . | . . . Unauthorized Hacks 3 | . 3 . Terminals 1 | . 1 . Disrupt 1 | . 1 . Fabricators . | . . . Repair Stations . | . . . Recycling Units 2 | . 2 . Tunnel 2 | . 2 . Scanalyzers . | . . . Garrison Access . | . . . Data Cores Recovered . | . . . Used . | . . . Hacking Detections 2 | . 2 . Full Trace Events . | . . . Feedback Events . | . . . Feedback Blocked . | . . . Robot Schematics Acquired . | . . . Robots Built . | . . . Authchips . | . . . Time . | . . . Total Robot Build Rating . | . . . Part Schematics Acquired 1 | . 1 . Parts Built . | . . . Authchips . | . . . Time . | . . . Total Part Build Rating . | . . . Parts Repaired . | . . . Time . | . . . Parts Recycled . | . . . Recycled Matter . | . . . Retrieved Matter . | . . . Retrieved Components . | . . . Parts Scanalyzed . | . . . Part Schematics Acquired . | . . . Parts Damaged . | . . . Bothacking | -11 -10 -10 ------------ Run | Yrd Mat Min Used RIF Installer . | . . . Robots Hacked . | . . . Non-combat . | . . . Combat . | . . . Robot Hacks Applied . | . . . Relay Couplers Released . | . . . Fabnet Peak Effective % . | . . . Robots Rewired . | . . . Allies Hacked . | . . . Hacks Repelled . | . . . Allies | -11 -10 -10 -------- Run | Yrd Mat Min Total Allies . | . . . Largest Group . | . . . Highest-Rated Group . | . . . Highest-Rated Ally . | . . . Total Orders . | . . . Ally Attacks . | . . . Total Damage . | . . . Kills . | . . . Allies Corrupted . | . . . Allies Melted . | . . . Intel | -11 -10 -10 ------- Run | Yrd Mat Min Robot Analysis Total . | . . . Derelict Logs Recovered 1 | . . 1 Drone Launches . | . . . Drone Recoveries . | . . . Exploration | -11 -10 -10 ------------- Run | Yrd Mat Min Turns Passed 617 | 78 438 101 Spaces Moved 300 | 42 207 51 Core 5 | 5 . . Treads 208 | 37 171 . Legs 38 | . 36 2 Wheels 49 | . . 49 Hover . | . . . Flight . | . . . Fastest Speed 50 | 50 120 80 Average Speed 140 | 146 153 81 Slowest Speed 160 | 160 160 120 Overloaded Moves . | . . . Propulsion Burnouts . | . . . Robots Hopped . | . . . Cave-ins Triggered . | . . . Exploration Rate (%) 18 | 4 43 9 Regions Visited 2 Branch Regions 1 Pre-discovered Areas 2 | . 2 . Known Exits Taken . | . . . Unknown Exits Taken 2 | 1 1 . Scrap Searched 1 | . . 1 Spaces Dug . | . . . Terrain Destroyed 4 | . 3 1 Melee . | . . . Projectile 1 | . . 1 AOE 3 | . 3 . Terrain Rammed . | . . . Walls Destroyed . | . . . Machines Disabled . | . . . Actions | -11 -10 -10 --------- Run | Yrd Mat Min Total 427 | 55 284 88 Wait 44 | . 28 16 Move 298 | 41 206 51 Hop . | . . . Pick Up 14 | 7 5 2 Fast Attach 7 | 5 1 1 Attach 9 | 1 6 2 Detach . | . . . Swap 7 | 1 1 5 Drop 4 | . 4 . Fire 32 | . 22 10 Melee . | . . . Ram 1 | . . 1 Kick 5 | . 5 . Crush 6 | . 6 . Escape Stasis . | . . . Rewire . | . . . Trap . | . . . Miscellaneous . | . . . Route ------- -11/Scrapyard -10/Materials -10/Mines (discovered 1 exit: [*Mat]) History --------- Turn | Location | Event 2 | -11/Scrapyard | Met Revision 17 10 | -11/Scrapyard | Discovered new exit (range 16) 79 | -11/Scrapyard | Entered Materials 318 | -10/Materials | Build established: Mutant 488 | -10/Materials | Core integrity fell below 50% 495 | -10/Materials | Discovered new exit (range 16) 505 | -10/Materials | Lost 7 parts (1p2n4w) 517 | -10/Materials | Entered Mines 585 | -10/Mines | Discovered new exit (range 8) 606 | -10/Mines | Core integrity fell below 20% 618 | -10/Mines | Destroyed by S-10 Pest with Light Assault Rifle Last Messages --------------- 00556_ Acquired derelict log, extracted data. Data stored: Storage entrances (x1). 00563_ S-10 Pest destroyed. 00567_ Flight Unit melted. 00567_ S-10 Pest destroyed. 00572_ Acquired Lgt. Assault Rifle. 00575_ K-01 Serf collects debris. 00585_ Searching scrap... 00585_ Found Sml. Storage Unit. 00585_ Found Propulsion Shielding. 00585_ Found Lgt. Assault Rifle. 00585_ Found 16 Matter. 00585_ EXIT=FOUND 00586_ Acquired 16 matter. 00587_ Acquired Propulsion Shielding. 00591_ Acquired Lgt. Assault Rifle. 00596_ K-01 Serf collects debris. 00601_ S-10 Pest destroyed. 00612_ Acquired 18 matter. 00616_ Ion Engine destroyed. Map ----- +----------------------------------------------------+ | | | | | | | | | | | | | | | | | | | | | | | | | | | | | | | | | | | | | ????????????????????????????????????????????????? | | ????????????????????????????????????????????????? | | ????????????????????????????????????????????????? | | ????????????????????????????????????????????????? | | ????????????????????????????????????????????????? | | ????????????????????????????????????????????????? | | ?????????????############### #??????????????? | | ?????????????# s@ r #??????????????? | | ?????????????# ########s#### r ????????? | | ????????????????????###=###???????# #???????????? | | ???????????????????## ##????????????????????? | | ??????????????????## ##???????????????????? | | ??????????????????# #?###???????????????? | | ??????????????????# #?# ???????????????? | | ??????????????????## ## #?# #???????????????? | | ???????????????????###?## ##?# #???????????????? | | ????????????????????????# #### #???????????????? | | ????????????????????????# =#???????????????? | | ????????????????????????# ###"##???????????????? | | ????????????????????????# #####????????????????? | | ????????????????####???## #???????????????????? | | ???????????????## ##### #???????????????????? | | ???????????????# ## ##???????????????????? | | ???????????????## #????????????????????? | | ????????????????## ##????????????????????? | | ?????????????????#### ##?????????????????????? | | ????????????????????## ##??????????????????????? | | ?????????????????????####???????????????????????? | | ????????????????????????????????????????????????? | | ????????????????????????????????????????????????? | | ????????????????????????????????????????????????? | | ????????????????????????????????????????????????? | +----------------------------------------------------+ Best States ------------- Heat Dissipation 25 Energy Generation 10 Energy Capacity 250 Matter Stores 300 Matter Capacity 300 Sight Range 16 Terrain Scan Density 10 Propulsion Shielding 33 Evasion (%) 55 Recoil Reduction 2 Item Schematics ----------------- Cargo Storage Unit | -10/Materials | Hacked Robot Schematics ------------------ None Fabricated ------------ Nothing Alien Tech Used ----------------- None Achievements -------------- None Challenges ------------ None Game ------ Seed SpreadCoilFlail Manual? 0 Play Time 00:07:01 Cumulative 310.4 hours Start 2024.05.05 @ 12:05:11 End 2024.05.05 @ 12:10:54 Sessions 1 Manual Loads 0 Difficulty Rogue Special Mode None Game No. 83 Rogue 83 Adventurer 0 Explorer 0 Win Type - Total 17 Types 8/3/3/1/1/0/1/0/0 Lore% 58 Gallery% 80 Achievement% 71 Wizard Run 0 Options --------- Layout 1 ASCII 0 Keyboard 0 Movement Numpad Keybinds 0 Fullscreen 1 Font 24/Smallcaps Map View 50x35 Zoom Use 0% Tactical HUD 1 Map Filters NONE Filters NONE Steam 1 RUN: ba628787-90f2-4b21-b5ce-1182b5c4f0bc